fUST/lending_fUST_20250220
["ID","MTS","AMOUNT","RATE_DAILY","PERIOD"]
[353764438,1740018645700,-1171.83898057,0.0001489,2]
[353764439,1740018645710,-1171.83898057,0.0001489,2]
[353764440,1740018645720,-1171.83898057,0.0001489,2]
[353764441,1740018645730,-1171.83898057,0.0001489,2]
[353764442,1740018645740,-1171.83898057,0.0001489,2]
[353764443,1740018645750,-1171.83898057,0.0001489,2]
[353764444,1740018645759,-1171.83898057,0.0001489,2]
[353764445,1740018645769,-1171.83898057,0.0001489,2]
[353764446,1740018645779,-1171.83898057,0.0001489,2]
[353764447,1740018645789,-1171.83,0.0001489,2]
[353764448,1740018645798,-150.56095269,0.0001489,2]
[353764449,1740018645808,-150.56095269,0.0001489,2]
[353764450,1740018645818,-150.56095269,0.0001489,2]
[353764451,1740018645827,-150.56095269,0.0001489,2]
[353764452,1740018645837,-150.56095269,0.0001489,2]
[353764453,1740018645847,-150.56095269,0.0001489,2]
[353764454,1740018645857,-150.56095269,0.0001489,2]
[353764455,1740018645867,-150.56095269,0.0001489,2]
[353764456,1740018645879,-150.56095269,0.0001489,2]
[353764457,1740018645889,-150.56095269,0.0001489,2]
[353764458,1740018645900,-150.56095269,0.0001489,2]
[353764459,1740018645911,-150.56095269,0.0001489,2]
[353764460,1740018645921,-150.56095269,0.0001489,2]
[353764461,1740018645931,-150.56095269,0.0001489,2]
[353764462,1740018645942,-150.56095269,0.0001489,2]
[353764463,1740018645952,-150.56095269,0.0001489,2]
[353764464,1740018645962,-150.56095269,0.0001489,2]
[353764465,1740018645972,-150.56095269,0.0001489,2]
[353764466,1740018645982,-150.56,0.0001489,2]
[353764467,1740018645992,-4150.61742817,0.0001489,2]
[353764468,1740018646005,-265.5,0.0001489,2]
[353764469,1740018646190,-500.0,0.00014356,2]
[353764470,1740018646201,-500.0,0.00014438,2]
[353764471,1740018646211,-500.0,0.0001452,2]
[353764472,1740018646221,-193.51180492,0.00014602,2]
[353764473,1740018646231,-903.94819508,0.0001489,2]
[353764474,1740018646252,-18.97168932,0.0001489,2]
[353764475,1740018646262,-1004.30815764,0.00014897,2]
[353764476,1740018646271,-412.52393781,0.00014899,2]
[353764477,1740018646281,-857.504495,0.000149,2]
[353764478,1740018646290,-857.504495,0.000149,2]
[353764479,1740018646300,-151.0,0.000149,2]
[353764480,1740018646310,-935.0,0.000149,2]
[353764481,1740018646320,-40005.79735742,0.000149,2]
[353764482,1740018646334,-5640.0000006,0.000149,2]
[353764483,1740018646346,-2339.9999998,0.000149,2]
[353764484,1740018646358,-5923.04810749,0.000149,2]
[353764485,1740018646369,-10772.73199828,0.000149,2]
[353764486,1740018646380,-315.88943733,0.000149,2]
[353764487,1740018646392,-3805.83495575,0.000149,2]
[353764488,1740018646405,-2098.09279711,0.000149,2]
[353764489,1740018646542,-153.0,0.00014397,2]
[353764490,1740018646552,-153.0,0.00014397,2]
[353764491,1740018646561,-153.0,0.00014397,2]
[353764492,1740018646571,-22204.72,0.000149,2]
[353764493,1740018646589,-153.0,0.00014397,2]
[353764494,1740018646599,-3088.78482194,0.000149,2]
[353764542,1740019786958,193.049813,9.041e-05,2]
[353764576,1740019832199,-953.7851039,0.00012515,2]
[353764577,1740019832252,-757.5153918,0.00012515,2]
[353764578,1740019832261,-620.9989435,0.00012515,2]
[353764579,1740019832270,-300.0,0.00012736,2]
[353764580,1740019832279,-23717.8408978,0.00012737,2]
[353764581,1740019832288,-1159.12319473,0.00012968,2]
[353764582,1740019832298,-700.0,0.00013068,2]
[353764583,1740019832309,-170.40326072,0.00013595,2]
[353764584,1740019832318,-214.20824354,0.00013598,2]
[353764585,1740019832328,-500.0,0.00013698,2]
[353764586,1740019832337,-505.17434139,0.00013698,2]
[353764587,1740019832347,-233.51384597,0.00013698,2]
[353764588,1740019832357,-508.21926925,0.00013698,2]
[353764589,1740019832366,-507.09025297,0.00013698,2]
[353764590,1740019832375,-500.0,0.00013698,2]
[353764591,1740019832384,-500.0,0.00013698,2]
[353764592,1740019832393,-1002.86407051,0.00013698,2]
[353764593,1740019832402,-229.6017863,0.00013698,2]
[353764594,1740019832412,-500.0,0.00013698,2]
[353764595,1740019832421,-500.0,0.00013698,2]
[353764596,1740019832431,-502.96886447,0.00013698,2]
[353764597,1740019832440,-500.0,0.00013698,2]
[353764598,1740019832450,-500.0,0.00013698,2]
[353764599,1740019832459,-500.0,0.00013698,2]
[353764600,1740019832469,-500.0,0.00013698,2]
[353764601,1740019832479,-500.0,0.00013698,2]
[353764602,1740019832489,-500.0,0.00013698,2]
[353764603,1740019832499,-288.56680216,0.00013698,2]
[353764605,1740019832508,-500.0,0.00013698,2]
[353764607,1740019832518,-500.0,0.00013698,2]
[353764609,1740019832528,-500.25307472,0.00013698,2]
[353764611,1740019832537,-500.0,0.00013698,2]
[353764613,1740019832547,-500.0,0.00013698,2]
[353764615,1740019832560,-500.0,0.00013698,2]
[353764617,1740019832570,-500.0,0.00013698,2]
[353764619,1740019832584,-500.0,0.00013698,2]
[353764621,1740019832593,-507.86749704,0.00013698,2]
[353764623,1740019832604,-500.0,0.00013698,2]
[353764625,1740019832614,-500.0,0.00013698,2]
[353764627,1740019832625,-503.14114913,0.00013698,2]
[353764629,1740019832635,-579.12525168,0.00013698,2]
[353764631,1740019832645,-502.64539022,0.00013698,2]
[353764633,1740019832657,-510.15119049,0.00013698,2]
[353764636,1740019832667,-188.52416731,0.00013698,2]
[353764637,1740019832677,-505.42972048,0.00013698,2]
[353764639,1740019832686,-500.0,0.00013698,2]
[353764642,1740019832696,-501.82728197,0.00013698,2]
[353764644,1740019832705,-500.0,0.00013698,2]
[353764646,1740019832715,-500.0,0.00013698,2]
[353764648,1740019832724,-526.38998731,0.00013698,2]
[353764650,1740019832734,-501.35412303,0.00013698,2]
[353764652,1740019832743,-502.46008,0.00013698,2]
[353764654,1740019832753,-501.50611332,0.00013698,2]
[353764656,1740019832762,-500.84441352,0.00013698,2]
[353764658,1740019832771,-504.9742143,0.00013698,2]
[353764660,1740019832780,-506.36729509,0.00013698,2]
[353764662,1740019832790,-500.0,0.00013698,2]
[353764664,1740019832801,-501.70050741,0.00013698,2]
[353764666,1740019832811,-500.0,0.00013698,2]
[353764668,1740019832820,-500.0,0.00013698,2]
[353764678,1740019833005,-722.71,0.00013698,2]
[353764679,1740019833015,-500.0,0.00013698,2]
[353764680,1740019833025,-500.0,0.00013698,2]
[353764681,1740019833034,-605.395036,0.00013698,2]
[353764682,1740019833044,-500.0,0.00013698,2]
[353764683,1740019833055,-500.0,0.00013698,2]
[353764684,1740019833065,-500.0,0.00013698,2]
[353764685,1740019833075,-503.79895493,0.00013698,2]
[353764686,1740019833084,-503.53277764,0.00013698,2]
[353764687,1740019833094,-674.46,0.00013698,2]
[353764688,1740019833103,-500.0,0.00013698,2]
[353764689,1740019833112,-500.0,0.00013698,2]
[353764690,1740019833122,-98.66672861,0.00013698,2]
[353764691,1740019833136,-401.33327139,0.00013698,2]
[353764692,1740019833145,-1069.29,0.00013698,2]
[353764693,1740019833155,-503.80627098,0.00013698,2]
[353764694,1740019833165,-500.0,0.00013698,2]
[353764695,1740019833175,-1739.58,0.00013698,2]
[353764696,1740019833184,-500.0,0.00013698,2]
[353764697,1740019833193,-500.0,0.00013698,2]
[353764698,1740019833202,-500.0,0.00013698,2]
[353764699,1740019833211,-500.0,0.00013698,2]
[353764700,1740019833221,-500.0,0.00013698,2]
[353764701,1740019833230,-500.0,0.00013698,2]
[353764702,1740019833239,-500.0,0.00013698,2]
[353764703,1740019833249,-1366.17,0.00013698,2]
[353764704,1740019833258,-500.0,0.00013698,2]
[353764705,1740019833267,-500.0,0.00013698,2]
[353764706,1740019833277,-500.0,0.00013698,2]
[353764707,1740019833288,-500.0,0.00013698,2]
[353764708,1740019833298,-504.93552188,0.00013698,2]
[353764709,1740019833308,-500.0,0.00013698,2]
[353764710,1740019833318,-557.51,0.00013698,2]
[353764711,1740019833327,-500.0,0.00013698,2]
[353764712,1740019833336,-500.0,0.00013698,2]
[353764713,1740019833346,-504.47189125,0.00013698,2]
[353764714,1740019833356,-503.17478124,0.00013698,2]
[353764715,1740019833365,-500.0,0.00013698,2]
[353764716,1740019833374,-500.0,0.00013698,2]
[353764717,1740019833383,-284.01027914,0.00013698,2]
[353764718,1740019833393,-509.03359736,0.00013698,2]
[353764719,1740019833402,-660.45,0.00013698,2]
[353764720,1740019833412,-503.06367834,0.00013698,2]
[353764721,1740019833422,-500.0,0.00013698,2]
[353764722,1740019833431,-500.0,0.00013698,2]
[353764723,1740019833440,-500.0,0.00013698,2]
[353764724,1740019833449,-535.56,0.00013698,2]
[353764725,1740019833459,-179.20577789,0.00013698,2]
[353764726,1740019833468,-500.0,0.00013698,2]
[353764727,1740019833478,-500.0,0.00013698,2]
[353764728,1740019833487,-500.0,0.00013698,2]
[353764729,1740019833497,-1153.03,0.00013698,2]
[353764730,1740019833507,-685.45,0.00013698,2]
[353764731,1740019833517,-500.0,0.00013698,2]
[353764732,1740019833527,-505.67824365,0.00013698,2]
[353764733,1740019833536,-1095.37,0.00013698,2]
[353764734,1740019833546,-4369.04,0.00013698,2]
[353764735,1740019833557,-500.0,0.00013698,2]
[353764736,1740019833572,-500.0,0.00013698,2]
[353764737,1740019833581,-500.0,0.00013698,2]
[353764738,1740019833591,-500.0,0.00013698,2]
[353764739,1740019833601,-500.0,0.00013698,2]
[353764740,1740019833611,-500.0,0.00013698,2]
[353764741,1740019833621,-500.0,0.00013698,2]
[353764742,1740019833632,-500.0,0.00013698,2]
[353764743,1740019833641,-500.0,0.00013698,2]
[353764744,1740019833651,-500.0,0.00013698,2]
[353764745,1740019833662,-500.0,0.00013698,2]
[353764746,1740019833671,-500.0,0.00013698,2]
[353764747,1740019833681,-500.0,0.00013698,2]
[353764748,1740019833690,-500.0,0.00013698,2]
[353764749,1740019833700,-500.0,0.00013698,2]
[353764750,1740019833709,-1952.03,0.00013698,2]
[353764751,1740019833718,-14853.52,0.00013698,2]
[353764752,1740019833728,-2012.65,0.00013698,2]
[353764753,1740019833738,-500.0,0.00013698,2]
[353764754,1740019833748,-500.0,0.00013698,2]
[353764755,1740019833757,-3118.39,0.00013698,2]
[353764756,1740019833767,-500.0,0.00013698,2]
[353764757,1740019833776,-500.0,0.00013698,2]
[353764758,1740019833785,-944.01,0.00013698,2]
[353764759,1740019833795,-500.0,0.00013698,2]
[353764760,1740019833805,-500.0,0.00013698,2]
[353764761,1740019833812,-175.428824,0.00013699,2]
[353764762,1740019833819,-200.0,0.000137,4]
[353764763,1740019833826,-200.0,0.000137,4]
[353764764,1740019833833,-200.0,0.000137,4]
[353764765,1740019833840,-500.0,0.00013775,2]
[353764766,1740019833848,-500.0,0.00013775,2]
[353764767,1740019833857,-526.87438988,0.00013778,2]
[353764768,1740019833866,-529.70582091,0.00013778,2]
[353764769,1740019833875,-500.0,0.00013778,2]
[353764770,1740019833884,-500.0,0.00013778,2]
[353764771,1740019833893,-500.0,0.00013779,2]
[353764772,1740019833903,-500.0,0.00013779,2]
[353764773,1740019833913,-500.0,0.00013779,2]
[353764774,1740019833922,-500.0,0.00013779,2]
[353764775,1740019833932,-500.0,0.00013779,2]
[353764776,1740019833941,-500.0,0.0001378,2]
[353764777,1740019833951,-500.0,0.0001378,2]
[353764778,1740019833960,-220.5,0.0001378,2]
[353764779,1740019833970,-500.0,0.0001378,2]
[353764780,1740019833981,-237.9,0.0001378,2]
[353764781,1740019833990,-500.0,0.0001378,2]
[353764782,1740019833999,-500.0,0.0001378,2]
[353764783,1740019834009,-271.24,0.0001378,2]
[353764784,1740019834018,-500.0,0.0001378,2]
[353764785,1740019834028,-500.0,0.0001378,2]
[353764786,1740019834037,-500.0,0.0001378,2]
[353764787,1740019834047,-500.0,0.0001378,2]
[353764788,1740019834057,-500.0,0.0001378,2]
[353764789,1740019834066,-500.0,0.0001378,2]
[353764790,1740019834075,-500.0,0.0001378,2]
[353764791,1740019834084,-519.75595241,0.0001378,2]
[353764792,1740019834094,-500.0,0.0001378,2]
[353764793,1740019834104,-732.91822254,0.0001378,2]
[353764794,1740019834113,-500.0,0.0001378,2]
[353764795,1740019834123,-501.55,0.0001378,2]
[353764796,1740019834131,-722.71,0.0001378,2]
[353764797,1740019834141,-500.0,0.0001378,2]
[353764798,1740019834150,-500.0,0.0001378,2]
[353764799,1740019834161,-674.46,0.0001378,2]
[353764800,1740019834170,-606.96,0.0001378,2]
[353764801,1740019834180,-500.0,0.0001378,2]
[353764802,1740019834189,-1069.29,0.0001378,2]
[353764803,1740019834198,-302.53277905,0.0001378,2]
[353764804,1740019834207,-1739.58,0.0001378,2]
[353764805,1740019834216,-500.0,0.0001378,2]
[353764806,1740019834225,-359.09768351,0.0001378,2]
[353764807,1740019834235,-1366.17,0.0001378,2]
[353764808,1740019834245,-500.0,0.0001378,2]
[353764809,1740019834255,-557.51,0.0001378,2]
[353764810,1740019834266,-500.0,0.0001378,2]
[353764811,1740019834276,-500.0,0.0001378,2]
[353764812,1740019834286,-500.0,0.0001378,2]
[353764813,1740019834297,-500.0,0.0001378,2]
[353764814,1740019834310,-660.45,0.0001378,2]
[353764815,1740019834320,-500.0,0.0001378,2]
[353764816,1740019834330,-184.95740711,0.0001378,2]
[353764817,1740019834340,-500.0,0.0001378,2]
[353764818,1740019834350,-500.0,0.0001378,2]
[353764819,1740019834360,-1153.03,0.0001378,2]
[353764820,1740019834370,-685.45,0.0001378,2]
[353764821,1740019834381,-285.16691273,0.0001378,2]
[353764822,1740019834390,-1095.37,0.0001378,2]
[353764823,1740019834399,-4369.04,0.0001378,2]
[353764824,1740019834408,-500.0,0.0001378,2]
[353764825,1740019834417,-500.0,0.0001378,2]
[353764826,1740019834427,-500.0,0.0001378,2]
[353764827,1740019834437,-500.0,0.0001378,2]
[353764828,1740019834446,-565.67,0.0001378,2]
[353764829,1740019834455,-500.0,0.0001378,2]
[353764830,1740019834467,-500.0,0.0001378,2]
[353764831,1740019834480,-500.0,0.0001378,2]
[353764832,1740019834492,-1952.03,0.0001378,2]
[353764833,1740019834504,-14853.52,0.0001378,2]
[353764834,1740019834516,-2012.65,0.0001378,2]
[353764835,1740019834529,-500.0,0.0001378,2]
[353764836,1740019834540,-500.0,0.0001378,2]
[353764837,1740019834552,-3118.39,0.0001378,2]
[353764838,1740019834563,-500.0,0.0001378,2]
[353764839,1740019834578,-944.01,0.0001378,2]
[353764840,1740019834589,-500.0,0.0001378,2]
[353764841,1740019834600,-500.0,0.00013862,2]
[353764842,1740019834611,-500.0,0.00013862,2]
[353764843,1740019834624,-500.0,0.00013862,2]
[353764844,1740019834636,-500.0,0.00013862,2]
[353764845,1740019834648,-520.69637365,0.00013863,2]
[353764846,1740019834662,-316.63,0.00013863,2]
[353764847,1740019834675,-565.71237265,0.00013863,2]
[353764848,1740019834686,-500.0,0.00013863,2]
[353764849,1740019834699,-500.0,0.00013863,2]
[353764850,1740019834711,-226.61,0.00013863,2]
[353764851,1740019834725,-306.96,0.00013863,2]
[353764852,1740019834737,-187.63,0.00013863,2]
[353764853,1740019834749,-500.0,0.00013863,2]
[353764854,1740019834760,-500.0,0.00013863,2]
[353764855,1740019834772,-500.0,0.00013863,2]
[353764856,1740019834784,-722.71,0.00013863,2]
[353764857,1740019834796,-500.0,0.00013863,2]
[353764858,1740019834809,-500.0,0.00013863,2]
[353764859,1740019834822,-674.46,0.00013863,2]
[353764860,1740019834834,-500.0,0.00013863,2]
[353764861,1740019834846,-1069.29,0.00013863,2]
[353764862,1740019834859,-1739.58,0.00013863,2]
[353764863,1740019834871,-500.0,0.00013863,2]
[353764864,1740019834883,-1366.17,0.00013863,2]
[353764865,1740019834893,-500.0,0.00013863,2]
[353764866,1740019834904,-557.51,0.00013863,2]
[353764867,1740019834915,-266.79,0.00013863,2]
[353764868,1740019834927,-500.0,0.00013863,2]
[353764869,1740019834938,-500.0,0.00013863,2]
[353764870,1740019834950,-500.0,0.00013863,2]
[353764871,1740019834962,-660.45,0.00013863,2]
[353764872,1740019834973,-500.0,0.00013863,2]
[353764873,1740019834985,-500.0,0.00013863,2]
[353764874,1740019834997,-500.0,0.00013863,2]
[353764875,1740019835008,-1153.03,0.00013863,2]
[353764876,1740019835020,-685.45,0.00013863,2]
[353764877,1740019835032,-1095.37,0.00013863,2]
[353764878,1740019835044,-4369.04,0.00013863,2]
[353764879,1740019835058,-500.0,0.00013863,2]
[353764880,1740019835072,-500.0,0.00013863,2]
[353764881,1740019835085,-500.0,0.00013863,2]
[353764882,1740019835098,-500.0,0.00013863,2]
[353764883,1740019835108,-224.42765128,0.00013863,2]
[353764884,1740019835118,-1952.03,0.00013863,2]
[353764885,1740019835129,-14853.52,0.00013863,2]
[353764886,1740019835140,-2012.65,0.00013863,2]
[353764887,1740019835150,-500.0,0.00013863,2]
[353764888,1740019835161,-500.0,0.00013863,2]
[353764889,1740019835172,-3118.39,0.00013863,2]
[353764890,1740019835183,-944.01,0.00013863,2]
[353764891,1740019835196,-179.67658215,0.0001392,2]
[353764892,1740019835208,-500.0,0.00013944,2]
[353764893,1740019835219,-500.0,0.00013944,2]
[353764894,1740019835230,-500.0,0.00013944,2]
[353764895,1740019835240,-500.0,0.00013944,2]
[353764896,1740019835250,-500.0,0.00013944,2]
[353764897,1740019835261,-500.0,0.00013945,2]
[353764898,1740019835272,-603.873712,0.00013945,2]
[353764899,1740019835283,-500.0,0.00013945,2]
[353764900,1740019835295,-496.39159416,0.00013945,2]
[353764901,1740019835307,-500.0,0.00013945,2]
[353764902,1740019835317,-722.71,0.00013945,2]
[353764903,1740019835328,-500.0,0.00013945,2]
[353764904,1740019835338,-500.0,0.00013945,2]
[353764905,1740019835348,-674.46,0.00013945,2]
[353764906,1740019835358,-500.0,0.00013945,2]
[353764907,1740019835369,-1069.29,0.00013945,2]
[353764908,1740019835379,-1739.58,0.00013945,2]
[353764909,1740019835389,-500.0,0.00013945,2]
[353764910,1740019835399,-1366.17,0.00013945,2]
[353764911,1740019835409,-500.0,0.00013945,2]
[353764912,1740019835419,-557.51,0.00013945,2]
[353764913,1740019835430,-500.0,0.00013945,2]
[353764914,1740019835442,-500.0,0.00013945,2]
[353764915,1740019835453,-500.0,0.00013945,2]
[353764916,1740019835463,-660.45,0.00013945,2]
[353764917,1740019835473,-500.0,0.00013945,2]
[353764918,1740019835483,-500.0,0.00013945,2]
[353764919,1740019835493,-1153.03,0.00013945,2]
[353764920,1740019835504,-685.45,0.00013945,2]
[353764921,1740019835514,-1095.37,0.00013945,2]
[353764922,1740019835522,-4369.04,0.00013945,2]
[353764923,1740019835530,-500.0,0.00013945,2]
[353764924,1740019835537,-500.0,0.00013945,2]
[353764925,1740019835546,-500.0,0.00013945,2]
[353764926,1740019835556,-500.0,0.00013945,2]
[353764927,1740019835565,-1952.03,0.00013945,2]
[353764928,1740019835575,-14853.52,0.00013945,2]
[353764929,1740019835583,-2012.65,0.00013945,2]
[353764930,1740019835591,-500.0,0.00013945,2]
[353764931,1740019835599,-500.0,0.00013945,2]
[353764932,1740019835607,-3118.39,0.00013945,2]
[353764933,1740019835617,-944.01,0.00013945,2]
[353764934,1740019835625,-420.0,0.00013971,2]
[353764935,1740019835633,-300.93611789,0.00014,2]
[353764936,1740019835643,-500.0,0.00014026,2]
[353764937,1740019835654,-500.0,0.00014026,2]
[353764938,1740019835665,-500.0,0.00014026,2]
[353764939,1740019835677,-500.0,0.00014026,2]
[353764940,1740019835688,-500.0,0.00014027,2]
[353764941,1740019835699,-500.0,0.00014027,2]
[353764942,1740019835710,-500.0,0.00014027,2]
[353764943,1740019835721,-722.71,0.00014027,2]
[353764944,1740019835731,-500.0,0.00014027,2]
[353764945,1740019835743,-500.0,0.00014027,2]
[353764946,1740019835754,-674.46,0.00014027,2]
[353764947,1740019835765,-500.0,0.00014027,2]
[353764948,1740019835776,-1069.29,0.00014027,2]
[353764949,1740019835787,-1739.58,0.00014027,2]
[353764950,1740019835797,-500.0,0.00014027,2]
[353764951,1740019835809,-1366.17,0.00014027,2]
[353764952,1740019835819,-500.0,0.00014027,2]
[353764953,1740019835830,-557.51,0.00014027,2]
[353764954,1740019835840,-500.0,0.00014027,2]
[353764955,1740019835851,-500.0,0.00014027,2]
[353764956,1740019835862,-500.0,0.00014027,2]
[353764957,1740019835872,-660.45,0.00014027,2]
[353764958,1740019835882,-500.0,0.00014027,2]
[353764959,1740019835891,-500.0,0.00014027,2]
[353764960,1740019835901,-1153.03,0.00014027,2]
[353764961,1740019835912,-685.45,0.00014027,2]
[353764962,1740019835922,-1095.37,0.00014027,2]
[353764963,1740019835932,-4369.04,0.00014027,2]
[353764964,1740019835943,-500.0,0.00014027,2]
[353764965,1740019835953,-500.0,0.00014027,2]
[353764966,1740019835963,-500.0,0.00014027,2]
[353764967,1740019835974,-500.0,0.00014027,2]
[353764968,1740019835984,-1952.03,0.00014027,2]
[353764969,1740019835994,-14853.52,0.00014027,2]
[353764970,1740019836004,-2012.65,0.00014027,2]
[353764971,1740019836014,-500.0,0.00014027,2]
[353764972,1740019836025,-500.0,0.00014027,2]
[353764973,1740019836036,-2668.20000773,0.00014027,2]
[353764974,1740019836053,-450.18999227,0.00014027,2]
[353764975,1740019836064,-944.01,0.00014027,2]
[353764976,1740019836074,-500.0,0.00014108,2]
[353764977,1740019836085,-500.0,0.00014108,2]
[353764978,1740019836096,-500.0,0.00014108,2]
[353764979,1740019836106,-500.0,0.00014108,2]
[353764980,1740019836117,-500.0,0.00014109,2]
[353764981,1740019836127,-500.0,0.00014109,2]
[353764982,1740019836303,-722.71,0.00014109,2]
[353764983,1740019836313,-500.0,0.00014109,2]
[353764984,1740019836323,-500.0,0.00014109,2]
[353764985,1740019836332,-674.46,0.00014109,2]
[353764986,1740019836342,-500.0,0.00014109,2]
[353764987,1740019836351,-1069.29,0.00014109,2]
[353764988,1740019836362,-1739.58,0.00014109,2]
[353764989,1740019836371,-500.0,0.00014109,2]
[353764990,1740019836382,-1366.17,0.00014109,2]
[353764991,1740019836391,-500.0,0.00014109,2]
[353764992,1740019836400,-557.51,0.00014109,2]
[353764993,1740019836410,-500.0,0.00014109,2]
[353764994,1740019836419,-500.0,0.00014109,2]
[353764995,1740019836429,-500.0,0.00014109,2]
[353764996,1740019836439,-660.45,0.00014109,2]
[353764997,1740019836449,-219.59479216,0.00014109,2]
[353764998,1740019836458,-500.0,0.00014109,2]
[353764999,1740019836467,-1153.03,0.00014109,2]
[353765000,1740019836478,-685.45,0.00014109,2]
[353765001,1740019836487,-1095.37,0.00014109,2]
[353765002,1740019836497,-4369.04,0.00014109,2]
[353765003,1740019836507,-500.0,0.00014109,2]
[353765004,1740019836517,-500.0,0.00014109,2]
[353765005,1740019836527,-500.0,0.00014109,2]
[353765006,1740019836536,-500.0,0.00014109,2]
[353765007,1740019836546,-14853.52,0.00014109,2]
[353765008,1740019836556,-1952.03,0.00014109,2]
[353765009,1740019836567,-2012.65,0.00014109,2]
[353765010,1740019836577,-500.0,0.00014109,2]
[353765011,1740019836587,-500.0,0.00014109,2]
[353765012,1740019836596,-1127.66661097,0.00014109,2]
[353765013,1740019836714,-1336.53056753,0.00014109,2]
[353765017,1740019838113,-500.0,0.00013694,2]
[353765018,1740019838121,-500.0,0.00013694,2]
[353765019,1740019838128,-524.38021551,0.00013694,2]
[353765020,1740019838136,-500.0,0.00013694,2]
[353765021,1740019838143,-387.99961179,0.00013694,2]
[353765022,1740019838150,-187.63119771,0.00013694,2]
[353765023,1740019838157,-500.0,0.00013694,2]
[353765024,1740019838166,-500.0,0.00013694,2]
[353765025,1740019838178,-500.0,0.00013694,2]
[353765026,1740019838188,-500.0,0.00013694,2]
[353765027,1740019838197,-500.0,0.00013694,2]
[353765028,1740019838205,-500.0,0.00013694,2]
[353765029,1740019838214,-500.0,0.00013694,2]
[353765030,1740019838223,-500.0,0.00013694,2]
[353765031,1740019838232,-500.0,0.00013694,2]
[353765032,1740019838242,-500.0,0.00013694,2]
[353765033,1740019838252,-500.0,0.00013694,2]
[353765034,1740019838262,-500.0,0.00013694,2]
[353765035,1740019838271,-500.0,0.00013698,2]
[353765036,1740019838280,-500.0,0.0001378,2]
[353765037,1740019838290,-654.1928215,0.00014109,2]
[353765038,1740019838299,-944.01,0.00014109,2]
[353765039,1740019838310,-153.0,0.00014154,2]
[353765040,1740019838320,-153.0,0.00014154,2]
[353765041,1740019838329,-306.0,0.00014154,2]
[353765042,1740019838339,-363.6520511,0.00014178,2]
[353765043,1740019838349,-154.3545597,0.00014178,2]
[353765044,1740019838358,-7438.69753278,0.00014188,2]
[353765045,1740019838367,-500.0,0.0001419,2]
[353765046,1740019838377,-500.0,0.0001419,2]
[353765047,1740019838386,-500.0,0.0001419,2]
[353765048,1740019838395,-500.0,0.0001419,2]
[353765049,1740019838403,-500.0,0.00014191,2]
[353765050,1740019838412,-500.0,0.00014191,2]
[353765051,1740019838421,-500.0,0.00014191,2]
[353765052,1740019838430,-500.0,0.00014191,2]
[353765053,1740019838440,-674.46,0.00014191,2]
[353765054,1740019838451,-500.0,0.00014191,2]
[353765055,1740019838461,-1069.29,0.00014191,2]
[353765056,1740019838471,-1739.58,0.00014191,2]
[353765057,1740019838481,-500.0,0.00014191,2]
[353765058,1740019838490,-1366.17,0.00014191,2]
[353765059,1740019838500,-500.0,0.00014191,2]
[353765060,1740019838509,-557.51,0.00014191,2]
[353765061,1740019838518,-500.0,0.00014191,2]
[353765062,1740019838527,-500.0,0.00014191,2]